[Event "Groningen Festival 2019-A"]
[Site "Groningen"]
[Date "2019.12.26"]
[Round "5.5"]
[White "Fier, Alexandr"]
[Black "Pacher, Milan"]
[Result "1-0"]
[ECO "A28"]
[WhiteElo "2528"]
[BlackElo "2427"]
[Annotator "ChessBase"]
[PlyCount "159"]
[EventDate "2019.12.15"]
[EventType "swiss"]
[EventCountry "NED"]
[SourceTitle "playchess.com"]
[Source "ChessBase"]
[SourceQuality "1"]
[TimeControl "40/5400+30:1800+30"]

1. c4 {[%emt 0:00:00]} e5 {[%emt 0:00:00]} 2. Nc3 {[%emt 0:00:00]} Nf6 {[%emt 0:00:00]} 3. Nf3 {[%emt 0:00:00]} Nc6 {[%emt 0:00:00]} 4. e3 {[%emt 0:00:00]} Bb4 {[%emt 0:00:43]} 5. Qc2 {[%emt 0:00:00]} Bxc3 {[%emt 0:00:44]} 6. Qxc3 {[%emt 0:00:00]} Qe7 {[%emt 0:00:08]} 7. d4 {[%emt 0:00:00]} Ne4 {[%emt 0:00:44]} 8. Qd3 {[%emt 0:00:22]} exd4 {[%emt 0:00:30]} 9. Nxd4 {[%emt 0:00:04]} Qb4+ {[%emt 0:03:54]} 10. Bd2 {[%emt 0:00:08]} Qxd2+ {[%emt 0:00:05]} 11. Qxd2 {[%emt 0:00:05]} Nxd2 {[%emt 0:00:03]} 12. Kxd2 {[%emt 0:00:04]} d6 {[%emt 0:01:07]} 13. Nxc6 {[%emt 0:03:42]} bxc6 {[%emt 0:00:02]} 14. Bd3 {[%emt 0:08:06]} c5 {[%emt 0:01:50]} 15. e4 {[%emt 0:01:45]} Bb7 {[%emt 0:06:05]} 16. Rhe1 {[%emt 0:00:46]} f6 {[%emt 0:00:39]} 17. Re3 {[%emt 0:00:05]} O-O {[%emt 0:02:21]} 18. Rae1 {[%emt 0:00:20]} Bc6 {[%emt 0:00:33]} 19. Bc2 {[%emt 0:02:08]} a5 {[%emt 0:01:47]} 20. Ra3 {[%emt 0:01:37]} Rfb8 {[%emt 0:05:05]} 21. Kc3 {[%emt 0:00:08]} Rb4 {[%emt 0:01:10]} 22. g3 {[%emt 0:00:44]} Bd7 {[%emt 0:12:41]} 23. f4 {[%emt 0:00:56]} Rab8 {[%emt 0:00:58]} 24. Rxa5 {[%emt 0:04:33]} Rxb2 {[%emt 0:00:05]} 25. Ra7 {[%emt 0:00:03]} Be6 {[%emt 0:01:10]} 26. Re2 {[%emt 0:00:44]} Kh8 {[%emt 0:16:06]} 27. Bd3 {[%emt 0:04:30]} R2b4 {[%emt 0:06:16]} 28. Rxc7 {[%emt 0:06:41]} Ra8 {[%emt 0:00:39]} 29. Rb2 {[%emt 0:00:04]} Rba4 {[%emt 0:04:44]} 30. Rc6 {[%emt 0:01:28]} Ra3+ {[%emt 0:00:08]} 31. Kc2 {[%emt 0:01:37]} R3a4 {[%emt 0:00:47]} 32. Kc3 {[%emt 0:02:42]} Ra3+ {[%emt 0:00:04]} 33. Rb3 {[%emt 0:00:03]} Rxa2 {[%emt 0:00:22]} 34. Rxd6 {[%emt 0:00:03]} Bg8 {[%emt 0:01:11]} 35. Rb2 {[%emt 0:00:07]} Ra1 {[%emt 0:00:18]} 36. Rc6 {[%emt 0:02:55]} Rd8 {[%emt 0:03:18]} 37. Bc2 {[%emt 0:02:32]} Rh1 {[%emt 0:01:07]} 38. Bb3 {[%emt 0:02:51]} Rc1+ {[%emt 0:04:52]} 39. Rc2 {[%emt 0:05:08]} Re1 {[%emt 0:00:19]} 40. Rxc5 {[%emt 0:00:13]} Re3+ {[%emt 0:00:55]} 41. Kb2 {[%emt 0:30:45]} Rb8 {[%emt 0:30:05]} 42. Rc3 {[%emt 0:00:03]} Rxe4 {[%emt 0:00:05]} 43. Ka3 {[%emt 0:01:16]} Re2 {[%emt 0:00:32]} 44. h4 {[%emt 0:00:17]} h6 {[%emt 0:01:52]} 45. Rb5 {[%emt 0:00:41]} Ra8+ {[%emt 0:00:24]} 46. Kb4 {[%emt 0:00:04]} Re4 {[%emt 0:00:36]} 47. Bc2 {[%emt 0:02:43]} Rd4 {[%emt 0:00:04]} 48. Bf5 {[%emt 0:00:05]} g5 {[%emt 0:02:05]} 49. hxg5 {[%emt 0:01:19]} hxg5 {[%emt 0:00:02]} 50. fxg5 {[%emt 0:01:17]} fxg5 {[%emt 0:00:02]} 51. Rb7 {[%emt 0:00:11]} Ra2 {[%emt 0:04:08]} 52. Kc5 {[%emt 0:01:14]} Rd1 {[%emt 0:01:14]} 53. g4 {[%emt 0:00:10]} Rh1 {[%emt 0:00:10]} 54. Re3 {[%emt 0:02:35]} Ra5+ {[%emt 0:00:45]} 55. Kb4 {[%emt 0:01:49]} Ra2 {[%emt 0:02:02]} 56. Rc7 {[%emt 0:00:42]} Ra8 {[%emt 0:01:59]} 57. Rc8 {[%emt 0:05:34]} Rxc8 {[%emt 0:00:57]} 58. Bxc8 {[%emt 0:00:03]} Kg7 {[%emt 0:00:06]} 59. Be6 {[%emt 0:00:23]} Bh7 {[%emt 0:04:11]} 60. c5 {[%emt 0:00:04]} Kf6 {[%emt 0:00:53]} 61. c6 {[%emt 0:00:17]} Rc1 {[%emt 0:00:47]} 62. Bc4 {[%emt 0:00:05]} Bg8 {[%emt 0:01:08]} 63. Bxg8 {[%emt 0:01:04]} Rxc6 {[%emt 0:00:06]} 64. Bc4 {[%emt 0:00:04]} Rd6 {[%emt 0:00:18]} 65. Kc5 {[%emt 0:00:05]} Rd1 {[%emt 0:00:05]} 66. Bd5 {[%emt 0:00:06]} Rg1 {[%emt 0:00:06]} 67. Re6+ {[%emt 0:00:04]} Kg7 {[%emt 0:00:06]} 68. Re4 {[%emt 0:00:02]} Kf6 {[%emt 0:00:12]} 69. Kd6 {[%emt 0:00:04]} Rg3 {[%emt 0:00:09]} 70. Rd4 {[%emt 0:00:58]} Rg1 {[%emt 0:00:04]} 71. Be6 {[%emt 0:00:40]} Re1 {[%emt 0:00:05]} 72. Bd7 {[%emt 0:00:06]} Re2 {[%emt 0:00:18]} 73. Rd5 {[%emt 0:00:07]} Re4 {[%emt 0:00:09]} 74. Rf5+ {[%emt 0:00:07]} Kg6 {[%emt 0:00:03]} 75. Re5 {[%emt 0:00:27]} Rd4+ {[%emt 0:00:19]} 76. Ke7 {[%emt 0:00:05]} Rb4 {[%emt 0:00:15]} 77. Be8+ {[%emt 0:00:41]} Kh6 {[%emt 0:00:07]} 78. Re6+ {[%emt 0:01:02]} Kh7 {[%emt 0:00:02]} 79. Bh5 {[%emt 0:00:10]} Rf4 {[%emt 0:00:25]} 80. Bg6+ {[%emt 0:00:57]} 1-0

[Event "Groningen Festival 2019-A"]
[Site "Groningen"]
[Date "2019.12.26"]
[Round "5.6"]
[White "Varshini, V."]
[Black "Van Foreest, Lucas"]
[Result "0-1"]
[ECO "B00"]
[WhiteElo "2227"]
[BlackElo "2526"]
[Annotator "ChessBase"]
[PlyCount "94"]
[EventDate "2019.12.15"]
[EventType "swiss"]
[EventCountry "NED"]
[SourceTitle "playchess.com"]
[Source "ChessBase"]
[SourceQuality "1"]
[TimeControl "40/5400+30:1800+30"]

1. e4 {[%emt 0:00:00]} Nc6 {[%emt 0:00:00]} 2. d4 {[%emt 0:00:22]} d5 {[%emt 0:00:10]} 3. e5 {[%emt 0:01:01]} Bf5 {[%emt 0:00:18]} 4. c3 {[%emt 0:00:46]} e6 {[%emt 0:00:14]} 5. Bd3 {[%emt 0:03:01]} Nge7 {[%emt 0:00:58]} 6. Ne2 {[%emt 0:00:53]} f6 {[%emt 0:00:15]} 7. f4 {[%emt 0:12:59]} Qd7 {[%emt 0:00:12]} 8. Ng3 {[%emt 0:02:02]} Bxd3 {[%emt 0:00:57]} 9. Qxd3 {[%emt 0:00:06]} h5 {[%emt 0:00:28]} 10. Nd2 {[%emt 0:02:20]} O-O-O {[%emt 0:00:45]} 11. b4 {[%emt 0:05:21]} h4 {[%emt 0:00:21]} 12. Ne2 {[%emt 0:00:39]} Nf5 {[%emt 0:00:21]} 13. Nb3 {[%emt 0:01:45]} Rg8 {[%emt 0:02:35]} 14. Rb1 {[%emt 0:09:10]} g5 {[%emt 0:02:20]} 15. b5 {[%emt 0:01:50]} Nb8 {[%emt 0:00:13]} 16. fxg5 {[%emt 0:05:16]} fxg5 {[%emt 0:05:36]} 17. Bd2 {[%emt 0:03:33]} Qh7 {[%emt 0:02:13]} 18. a4 {[%emt 0:08:02]} Rd7 {[%emt 0:00:08]} 19. Rc1 {[%emt 0:03:38]} Rf7 {[%emt 0:20:09]} 20. a5 {[%emt 0:08:53]} Ba3 {[%emt 0:01:11]} 21. Ra1 {[%emt 0:01:33]} Rgf8 {[%emt 0:02:24]} 22. Nbc1 {[%emt 0:07:48]} Bb2 {[%emt 0:02:20]} 23. Ra2 {[%emt 0:02:52]} Bxc1 {[%emt 0:00:05]} 24. Bxc1 {[%emt 0:02:25]} a6 {[%emt 0:05:58]} 25. c4 {[%emt 0:04:58]} dxc4 {[%emt 0:03:55]} 26. Qxc4 {[%emt 0:00:08]} Ng7 {[%emt 0:00:56]} 27. Nc3 {[%emt 0:04:00]} h3 {[%emt 0:00:45]} 28. Bxg5 {[%emt 0:03:39]} hxg2 {[%emt 0:05:01]} 29. Rxg2 {[%emt 0:00:08]} axb5 {[%emt 0:00:14]} 30. Qxb5 {[%emt 0:02:45]} Rf3 {[%emt 0:01:24]} 31. Ne2 {[%emt 0:01:57]} Qc2 {[%emt 0:13:28]} 32. Qc5 {[%emt 0:00:54]} Qe4 {[%emt 0:00:59]} 33. Rhg1 {[%emt 0:00:30]} Na6 {[%emt 0:00:55]} 34. Qc4 {[%emt 0:00:46]} Nf5 {[%emt 0:10:00]} 35. Qxe6+ {[%emt 0:00:51]} Kb8 {[%emt 0:00:01]} 36. Qc4 {[%emt 0:00:14]} Qb1+ {[%emt 0:00:06]} 37. Qc1 {[%emt 0:00:43]} Qa2 {[%emt 0:00:20]} 38. Qd2 {[%emt 0:00:37]} Qa4 {[%emt 0:00:27]} 39. Qd1 {[%emt 0:00:33]} Qxa5+ {[%emt 0:00:20]} 40. Bd2 {[%emt 0:00:25]} Qd5 {[%emt 0:02:25]} 41. Nc3 {[%emt 0:11:20]} Nb4 {[%emt 0:01:38]} 42. Qe2 {[%emt 0:12:20]} Nc2+ {[%emt 0:00:19]} 43. Kd1 {[%emt 0:00:11]} Qb3 {[%emt 0:00:15]} 44. Qb5 {[%emt 0:01:06]} Nce3+ {[%emt 0:00:09]} 45. Ke1 {[%emt 0:00:19]} Qd1+ {[%emt 0:00:08]} 46. Nxd1 {[%emt 0:00:10]} Nc2+ {[%emt 0:00:04]} 47. Ke2 {[%emt 0:00:05]} Nfxd4# {[%emt 0:00:10]} 0-1

[Event "Groningen Festival 2019-A"]
[Site "Groningen"]
[Date "2019.12.26"]
[Round "5.7"]
[White "Poetsch, Hagen"]
[Black "Kumar, Nikhil"]
[Result "1-0"]
[ECO "B12"]
[WhiteElo "2522"]
[BlackElo "2315"]
[Annotator "RC"]
[PlyCount "41"]
[EventDate "2019.12.15"]
[EventType "swiss"]
[EventCountry "NED"]
[SourceTitle "playchess.com"]
[Source "ChessBase"]
[SourceQuality "1"]
[TimeControl "40/5400+30:1800+30"]

1. e4 {[%emt 0:00:57]} c6 {[%emt 0:00:00]} 2. d4 {[%emt 0:00:12]} d5 {[%emt 0:00:00]} 3. e5 {[%emt 0:00:04]} c5 {[%emt 0:00:00]} 4. dxc5 {[%emt 0:00:07]} e6 {[%emt 0:00:00]} 5. Bd3 {[%emt 0:00:07]} Bxc5 {[%emt 0:00:12]} 6. Qg4 {[%emt 0:00:07]} Ne7 {[%emt 0:04:10]} 7. b4 {[%emt 0:00:11]} Bb6 {[%emt 0:03:11]} 8. Nf3 {[%emt 0:02:53]} Nd7 {[%emt 0:01:40]} 9. Qxg7 {[%emt 0:09:34]} Rg8 {[%emt 0:02:11]} 10. Qxh7 {[%emt 0:00:08]} Qc7 {[%emt 0:08:48]} 11. Bf4 {[%emt 0:06:57]} Rxg2 {[%emt 0:01:43]} 12. Bg3 {[%emt 0:02:11]} Nc6 {[%emt 0:17:59]} 13. Qg8+ {[%emt 0:19:38]} Nf8 {[%emt 0:00:26]} 14. Kf1 {[%emt 0:06:10]} Rxg3 {[%emt 0:02:57]} 15. hxg3 {[%emt 0:02:49]} Nxb4 {[%emt 0:03:57]} 16. Rh7 {[%emt 0:02:09]} Nc6 {[%emt 0:15:45]} 17. Nc3 {[%emt 0:04:08]} a6 {[%emt 0:03:19]} 18. Rb1 {[%emt 0:02:15]} Nd8 {[%emt 0:01:46]} 19. Ng5 {[%emt 0:03:58]} Qc5 {[%emt 0:08:19]} 20. Rxb6 {[%emt 0:01:19]} Qxb6 {[%emt 0:00:46]} 21. Nxf7 {[%emt 0:00:27]} 1-0

[Event "Groningen Festival 2019-A"]
[Site "Groningen"]
[Date "2019.12.26"]
[Round "5.8"]
[White "Davtyan, Artur"]
[Black "Gleizerov, Evgeny"]
[Result "1/2-1/2"]
[ECO "C06"]
[WhiteElo "2437"]
[BlackElo "2508"]
[Annotator "ChessBase"]
[PlyCount "107"]
[EventDate "2019.12.15"]
[EventType "swiss"]
[EventCountry "NED"]
[SourceTitle "playchess.com"]
[Source "ChessBase"]
[SourceQuality "1"]
[TimeControl "40/5400+30:1800+30"]

1. e4 {[%emt 0:04:53]} e6 {[%emt 0:00:00]} 2. d4 {[%emt 0:00:11]} d5 {[%emt 0:00:00]} 3. Nd2 {[%emt 0:00:09]} Nf6 {[%emt 0:00:00]} 4. e5 {[%emt 0:00:03]} Nfd7 {[%emt 0:00:00]} 5. Bd3 {[%emt 0:00:06]} c5 {[%emt 0:00:00]} 6. c3 {[%emt 0:00:04]} Nc6 {[%emt 0:00:00]} 7. Ne2 {[%emt 0:00:03]} cxd4 {[%emt 0:00:01]} 8. cxd4 {[%emt 0:00:03]} f6 {[%emt 0:00:04]} 9. Nf4 {[%emt 0:00:07]} Nxd4 {[%emt 0:00:08]} 10. Qh5+ {[%emt 0:00:05]} Ke7 {[%emt 0:00:09]} 11. exf6+ {[%emt 0:00:07]} Nxf6 {[%emt 0:00:07]} 12. Ng6+ {[%emt 0:00:14]} hxg6 {[%emt 0:00:09]} 13. Qxh8 {[%emt 0:00:04]} Kf7 {[%emt 0:00:28]} 14. O-O {[%emt 0:00:12]} e5 {[%emt 0:00:50]} 15. Nb3 {[%emt 0:02:16]} Nxb3 {[%emt 0:01:10]} 16. axb3 {[%emt 0:00:03]} Be6 {[%emt 0:03:50]} 17. Bg5 {[%emt 0:00:18]} Be7 {[%emt 0:04:58]} 18. Qh4 {[%emt 0:19:11]} Qb6 {[%emt 0:09:59]} 19. Qg3 {[%emt 0:00:59]} e4 {[%emt 0:00:56]} 20. Be2 {[%emt 0:00:04]} d4 {[%emt 0:19:54]} 21. Bc4 {[%emt 0:00:06]} Bxc4 {[%emt 0:00:44]} 22. bxc4 {[%emt 0:00:06]} Re8 {[%emt 0:03:41]} 23. Qh4 {[%emt 0:32:29]} a6 {[%emt 0:10:27]} 24. Rab1 {[%emt 0:00:59]} Bb4 {[%emt 0:05:35]} 25. Rbc1 {[%emt 0:01:23]} Nd7 {[%emt 0:03:45]} 26. Rcd1 {[%emt 0:06:20]} Kg8 {[%emt 0:04:33]} 27. Qg4 {[%emt 0:05:37]} Nf8 {[%emt 0:04:16]} 28. h3 {[%emt 0:00:16]} d3 {[%emt 0:04:05]} 29. Be3 {[%emt 0:00:47]} Qc6 {[%emt 0:01:15]} 30. b3 {[%emt 0:03:28]} Nd7 {[%emt 0:01:13]} 31. Kh1 {[%emt 0:00:18]} Bc5 {[%emt 0:02:21]} 32. Rfe1 {[%emt 0:03:11]} a5 {[%emt 0:00:40]} 33. f3 {[%emt 0:03:01]} exf3 {[%emt 0:02:04]} 34. Qxf3 {[%emt 0:01:13]} Qxf3 {[%emt 0:12:15]} 35. gxf3 {[%emt 0:00:05]} Bb4 {[%emt 0:00:29]} 36. Bd2 {[%emt 0:00:32]} Rxe1+ {[%emt 0:00:20]} 37. Bxe1 {[%emt 0:00:05]} Bxe1 {[%emt 0:00:21]} 38. Rxe1 {[%emt 0:00:04]} Nc5 {[%emt 0:00:04]} 39. Rd1 {[%emt 0:00:12]} Kf7 {[%emt 0:00:50]} 40. Kg2 {[%emt 0:00:17]} Ke6 {[%emt 0:04:54]} 41. Kf2 {[%emt 0:31:08]} Nxb3 {[%emt 0:30:20]} 42. Rxd3 {[%emt 0:00:06]} a4 {[%emt 0:00:12]} 43. Ke3 {[%emt 0:00:22]} g5 {[%emt 0:00:40]} 44. Rd8 {[%emt 0:07:46]} b6 {[%emt 0:00:00]} 45. Rb8 {[%emt 0:00:00]} Kd6 {[%emt 0:00:00]} 46. Rxb6+ {[%emt 0:00:00]} Kc5 {[%emt 0:00:00]} 47. Ra6 {[%emt 0:00:00]} Kb4 {[%emt 0:00:00]} 48. Ra7 {[%emt 0:00:00]} a3 {[%emt 0:00:00]} 49. c5 {[%emt 0:02:31]} Nxc5 {[%emt 0:00:00]} 50. f4 {[%emt 0:02:39]} gxf4+ {[%emt 0:00:00]} 51. Kxf4 {[%emt 0:00:20]} Kb3 {[%emt 0:00:00]} 52. Kf5 {[%emt 0:01:25]} a2 {[%emt 0:00:00]} 53. Rxa2 {[%emt 0:00:12]} Kxa2 {[%emt 0:00:00]} 54. Kg6 {[%emt 0:00:02]} 1/2-1/2

[Event "Groningen Festival 2019-A"]
[Site "Groningen"]
[Date "2019.12.26"]
[Round "5.9"]
[White "Beerdsen, Thomas"]
[Black "Mollema, Thomas"]
[Result "1/2-1/2"]
[ECO "C48"]
[WhiteElo "2482"]
[BlackElo "2207"]
[Annotator "ChessBase"]
[PlyCount "70"]
[EventDate "2019.12.15"]
[EventType "swiss"]
[EventCountry "NED"]
[SourceTitle "playchess.com"]
[Source "ChessBase"]
[SourceQuality "1"]
[TimeControl "40/5400+30:1800+30"]

1. e4 {[%emt 0:00:00]} e5 {[%emt 0:00:00]} 2. Nf3 {[%emt 0:00:00]} Nf6 {[%emt 0:00:21]} 3. Nc3 {[%emt 0:00:32]} Nc6 {[%emt 0:00:15]} 4. Bb5 {[%emt 0:00:06]} Nd4 {[%emt 0:00:35]} 5. Bc4 {[%emt 0:00:06]} Bc5 {[%emt 0:00:10]} 6. d3 {[%emt 0:09:47]} d6 {[%emt 0:01:53]} 7. Nxd4 {[%emt 0:03:22]} Bxd4 {[%emt 0:03:56]} 8. Be3 {[%emt 0:00:46]} Be6 {[%emt 0:09:15]} 9. Bxe6 {[%emt 0:03:49]} Bxc3+ {[%emt 0:02:32]} 10. bxc3 {[%emt 0:00:06]} fxe6 {[%emt 0:00:04]} 11. f4 {[%emt 0:03:27]} exf4 {[%emt 0:01:06]} 12. Bxf4 {[%emt 0:00:19]} O-O {[%emt 0:01:15]} 13. O-O {[%emt 0:00:54]} Qe8 {[%emt 0:05:52]} 14. c4 {[%emt 0:06:21]} e5 {[%emt 0:00:43]} 15. Be3 {[%emt 0:01:54]} b6 {[%emt 0:01:48]} 16. Rf5 {[%emt 0:00:59]} Qe6 {[%emt 0:02:33]} 17. Qe2 {[%emt 0:01:15]} Rf7 {[%emt 0:00:44]} 18. Raf1 {[%emt 0:01:56]} Raf8 {[%emt 0:01:05]} 19. h3 {[%emt 0:02:30]} g6 {[%emt 0:10:10]} 20. R5f3 {[%emt 0:07:30]} Kg7 {[%emt 0:16:02]} 21. Qe1 {[%emt 0:11:07]} Ng8 {[%emt 0:06:35]} 22. Rxf7+ {[%emt 0:00:43]} Rxf7 {[%emt 0:00:04]} 23. Rxf7+ {[%emt 0:00:10]} Qxf7 {[%emt 0:00:15]} 24. Qc3 {[%emt 0:02:23]} c5 {[%emt 0:04:25]} 25. Qe1 {[%emt 0:01:41]} Qd7 {[%emt 0:01:02]} 26. Qh4 {[%emt 0:00:37]} h6 {[%emt 0:01:55]} 27. Qg3 {[%emt 0:04:27]} Qe6 {[%emt 0:01:18]} 28. Qf3 {[%emt 0:01:09]} Qd7 {[%emt 0:01:32]} 29. h4 {[%emt 0:01:30]} Qe6 {[%emt 0:03:57]} 30. Qd1 {[%emt 0:08:05]} Nf6 {[%emt 0:01:37]} 31. Qf3 {[%emt 0:00:35]} h5 {[%emt 0:03:23]} 32. Bg5 {[%emt 0:00:31]} Ng4 {[%emt 0:06:09]} 33. Qd1 {[%emt 0:00:43]} Qf7 {[%emt 0:00:12]} 34. Qf1 {[%emt 0:00:49]} Qd7 {[%emt 0:00:12]} 35. Qb1 {[%emt 0:00:20]} Qf7 {[%emt 0:06:36]} 1/2-1/2

[Event "Groningen Festival 2019-A"]
[Site "Groningen"]
[Date "2019.12.26"]
[Round "5.10"]
[White "Maatman, Nick"]
[Black "Maris, Ivo"]
[Result "1/2-1/2"]
[ECO "B07"]
[WhiteElo "2400"]
[BlackElo "2413"]
[Annotator "NA"]
[PlyCount "48"]
[EventDate "2019.12.15"]
[EventType "swiss"]
[EventCountry "NED"]
[SourceTitle "playchess.com"]
[Source "ChessBase"]
[SourceQuality "1"]
[TimeControl "40/5400+30:1800+30"]

1. d4 {[%emt 0:00:00]} d6 {[%emt 0:00:00]} 2. e4 {[%emt 0:00:00]} Nf6 {[%emt 0:00:47]} 3. Nc3 {[%emt 0:00:27]} e5 {[%emt 0:00:04]} 4. dxe5 {[%emt 0:07:44]} dxe5 {[%emt 0:00:26]} 5. Qxd8+ {[%emt 0:00:04]} Kxd8 {[%emt 0:00:01]} 6. Bc4 {[%emt 0:01:28]} Bb4 {[%emt 0:00:05]} 7. Bg5 {[%emt 0:16:09]} Bxc3+ {[%emt 0:04:38]} 8. bxc3 {[%emt 0:01:50]} Ke7 {[%emt 0:00:22]} 9. f4 {[%emt 0:10:05]} Be6 {[%emt 0:22:13]} 10. Bb3 {[%emt 0:04:24]} h6 {[%emt 0:03:09]} 11. Bxf6+ {[%emt 0:15:15]} gxf6 {[%emt 0:03:25]} 12. Nf3 {[%emt 0:01:01]} exf4 {[%emt 0:04:14]} 13. O-O {[%emt 0:03:30]} Nd7 {[%emt 0:01:08]} 14. Nh4 {[%emt 0:13:54]} Ne5 {[%emt 0:06:31]} 15. Rxf4 {[%emt 0:00:04]} Ng6 {[%emt 0:01:24]} 16. Nf5+ {[%emt 0:00:50]} Bxf5 {[%emt 0:00:31]} 17. Rxf5 {[%emt 0:00:04]} Rad8 {[%emt 0:01:25]} 18. Raf1 {[%emt 0:01:19]} Rd6 {[%emt 0:00:14]} 19. c4 {[%emt 0:01:21]} b6 {[%emt 0:12:19]} 20. c5 {[%emt 0:00:03]} bxc5 {[%emt 0:00:03]} 21. Rxc5 {[%emt 0:00:24]} c6 {[%emt 0:01:02]} 22. Ra5 {[%emt 0:04:41]} Rd7 {[%emt 0:00:41]} 23. Raf5 {[%emt 0:00:25]} Rd6 {[%emt 0:00:10]} 24. Ra5 {[%emt 0:00:24]} Rd7 {[%emt 0:00:25]} 1/2-1/2

[Event "Groningen Festival 2019-A"]
[Site "Groningen"]
[Date "2019.12.26"]
[Round "5.11"]
[White "Hilwerda, Jonas"]
[Black "Gomes, Mary Ann"]
[Result "0-1"]
[ECO "B41"]
[WhiteElo "2228"]
[BlackElo "2324"]
[Annotator "NA"]
[PlyCount "94"]
[EventDate "2019.12.15"]
[EventType "swiss"]
[EventCountry "NED"]
[SourceTitle "playchess.com"]
[Source "ChessBase"]
[SourceQuality "1"]
[TimeControl "40/5400+30:1800+30"]

1. e4 {[%emt 0:00:00]} c5 {[%emt 0:00:00]} 2. Nf3 {[%emt 0:00:00]} e6 {[%emt 0:00:00]} 3. d4 {[%emt 0:00:00]} cxd4 {[%emt 0:00:00]} 4. Nxd4 {[%emt 0:00:00]} a6 {[%emt 0:00:00]} 5. Qd3 {[%emt 0:01:09]} Qc7 {[%emt 0:00:17]} 6. Qg3 {[%emt 0:00:52]} d6 {[%emt 0:04:46]} 7. c4 {[%emt 0:05:04]} Nd7 {[%emt 0:04:25]} 8. Nc3 {[%emt 0:00:56]} Ngf6 {[%emt 0:01:36]} 9. Be2 {[%emt 0:02:10]} h5 {[%emt 0:09:19]} 10. Bg5 {[%emt 0:13:19]} Be7 {[%emt 0:00:36]} 11. Bh4 {[%emt 0:02:04]} Ne5 {[%emt 0:08:28]} 12. Qxg7 {[%emt 0:13:57]} Rg8 {[%emt 0:06:42]} 13. Qh6 {[%emt 0:00:27]} Ng6 {[%emt 0:04:08]} 14. Bxf6 {[%emt 0:04:22]} Bxf6 {[%emt 0:00:07]} 15. Qd2 {[%emt 0:00:22]} Ne5 {[%emt 0:04:23]} 16. b3 {[%emt 0:04:26]} Rxg2 {[%emt 0:01:23]} 17. O-O-O {[%emt 0:03:23]} Ng6 {[%emt 0:11:35]} 18. Kb1 {[%emt 0:02:49]} Qc5 {[%emt 0:06:10]} 19. Qe3 {[%emt 0:20:50]} Qg5 {[%emt 0:13:21]} 20. Qxg5 {[%emt 0:01:36]} Rxg5 {[%emt 0:04:27]} 21. Na4 {[%emt 0:00:55]} Bd7 {[%emt 0:00:30]} 22. Nb6 {[%emt 0:00:23]} Rd8 {[%emt 0:00:17]} 23. Nxd7 {[%emt 0:00:31]} Rxd7 {[%emt 0:00:17]} 24. Nc2 {[%emt 0:02:04]} Nf4 {[%emt 0:01:44]} 25. Bf3 {[%emt 0:01:46]} Nh3 {[%emt 0:00:28]} 26. Rd2 {[%emt 0:01:19]} Bc3 {[%emt 0:00:41]} 27. Re2 {[%emt 0:00:37]} Nf4 {[%emt 0:00:22]} 28. h4 {[%emt 0:02:19]} Rg8 {[%emt 0:02:34]} 29. Re3 {[%emt 0:00:20]} Bd2 {[%emt 0:00:17]} 30. Bd1 {[%emt 0:02:04]} Bxe3 {[%emt 0:00:29]} 31. fxe3 {[%emt 0:00:01]} Nd3 {[%emt 0:00:19]} 32. Bxh5 {[%emt 0:00:42]} Nf2 {[%emt 0:01:55]} 33. Rh2 {[%emt 0:00:02]} Nxe4 {[%emt 0:00:46]} 34. Nd4 {[%emt 0:00:00]} Ng3 {[%emt 0:02:23]} 35. Bf3 {[%emt 0:01:08]} e5 {[%emt 0:00:29]} 36. Nc2 {[%emt 0:00:31]} f5 {[%emt 0:01:21]} 37. Nb4 {[%emt 0:00:53]} Rh7 {[%emt 0:01:17]} 38. Nd5 {[%emt 0:00:40]} Kf7 {[%emt 0:00:25]} 39. b4 {[%emt 0:01:45]} Nf1 {[%emt 0:01:20]} 40. Rf2 {[%emt 0:00:31]} Rg1 {[%emt 0:00:15]} 41. Kb2 {[%emt 0:35:44]} Rxh4 {[%emt 0:30:32]} 42. Nc3 {[%emt 0:00:12]} Nxe3 {[%emt 0:03:02]} 43. Bxb7 {[%emt 0:00:13]} Rxc4 {[%emt 0:01:07]} 44. Bd5+ {[%emt 0:06:34]} Nxd5 {[%emt 0:00:09]} 45. Nxd5 {[%emt 0:00:01]} Ke6 {[%emt 0:01:36]} 46. Ne3 {[%emt 0:00:08]} Rxb4+ {[%emt 0:00:14]} 47. Kc3 {[%emt 0:00:18]} Rf4 {[%emt 0:01:00] Kd4} 0-1

[Event "Groningen Festival 2019-A"]
[Site "Groningen"]
[Date "2019.12.26"]
[Round "5.12"]
[White "De Jong, Migchiel"]
[Black "Kokje, Joris"]
[Result "1/2-1/2"]
[ECO "B51"]
[WhiteElo "2326"]
[BlackElo "2222"]
[Annotator "NA"]
[PlyCount "95"]
[EventDate "2019.12.15"]
[EventType "swiss"]
[EventCountry "NED"]
[SourceTitle "playchess.com"]
[Source "ChessBase"]
[SourceQuality "1"]
[TimeControl "40/5400+30:1800+30"]

1. e4 {[%emt 0:00:00]} c5 {[%emt 0:00:00]} 2. Nf3 {[%emt 0:00:00]} d6 {[%emt 0:00:00]} 3. Bb5+ {[%emt 0:00:30]} Nc6 {[%emt 0:00:00]} 4. O-O {[%emt 0:00:46]} Bd7 {[%emt 0:00:00]} 5. Re1 {[%emt 0:00:38]} Nf6 {[%emt 0:00:16]} 6. h3 {[%emt 0:00:19]} a6 {[%emt 0:02:43]} 7. Bf1 {[%emt 0:00:28]} h6 {[%emt 0:07:22]} 8. a3 {[%emt 0:04:54]} g5 {[%emt 0:03:43]} 9. d4 {[%emt 0:00:45]} g4 {[%emt 0:03:51]} 10. d5 {[%emt 0:00:10]} gxf3 {[%emt 0:08:56]} 11. dxc6 {[%emt 0:00:08]} Bxc6 {[%emt 0:00:28]} 12. Qxf3 {[%emt 0:00:08]} e6 {[%emt 0:04:50]} 13. Nc3 {[%emt 0:01:49]} d5 {[%emt 0:06:08]} 14. exd5 {[%emt 0:06:20]} Nxd5 {[%emt 0:00:14]} 15. Ne4 {[%emt 0:02:30]} b5 {[%emt 0:09:02]} 16. Be3 {[%emt 0:02:51]} Nxe3 {[%emt 0:04:02]} 17. Nf6+ {[%emt 0:00:31]} Ke7 {[%emt 0:00:06]} 18. Qxc6 {[%emt 0:00:07]} Kxf6 {[%emt 0:01:05]} 19. Rxe3 {[%emt 0:00:22]} Rg8 {[%emt 0:08:47]} 20. Qf3+ {[%emt 0:02:32]} Kg7 {[%emt 0:02:52]} 21. Rd1 {[%emt 0:01:23]} Qe8 {[%emt 0:01:52]} 22. Qb7 {[%emt 0:02:08]} Kh8 {[%emt 0:02:39]} 23. Be2 {[%emt 0:05:10]} Rg7 {[%emt 0:06:01]} 24. Bf3 {[%emt 0:01:42]} Rd8 {[%emt 0:00:33]} 25. Rxd8 {[%emt 0:01:56]} Qxd8 {[%emt 0:00:08]} 26. Qxa6 {[%emt 0:02:15]} Qd2 {[%emt 0:02:29]} 27. Qxb5 {[%emt 0:03:24]} Qc1+ {[%emt 0:01:13]} 28. Qf1 {[%emt 0:00:10]} Qxb2 {[%emt 0:00:07]} 29. Qd1 {[%emt 0:04:12]} c4 {[%emt 0:03:22]} 30. a4 {[%emt 0:02:20]} Bc5 {[%emt 0:03:10]} 31. Re4 {[%emt 0:00:22]} Qb4 {[%emt 0:02:23]} 32. Qd8+ {[%emt 0:04:57]} Kh7 {[%emt 0:01:04]} 33. a5 {[%emt 0:11:18]} Qc3 {[%emt 0:02:18]} 34. Qd1 {[%emt 0:04:10]} Qxa5 {[%emt 0:01:33]} 35. Rxc4 {[%emt 0:00:08]} Qb6 {[%emt 0:03:16]} 36. Qd2 {[%emt 0:01:31]} Qd6 {[%emt 0:04:37]} 37. Qc3 {[%emt 0:03:31]} Bb6 {[%emt 0:01:51]} 38. Rc6 {[%emt 0:02:52]} Qd4 {[%emt 0:01:38]} 39. Qxd4 {[%emt 0:01:05]} Bxd4 {[%emt 0:00:05]} 40. c3 {[%emt 0:02:10]} Be5 {[%emt 0:00:44]} 41. c4 {[%emt 0:33:34]} Rg8 {[%emt 0:31:05]} 42. c5 {[%emt 0:02:08]} Ra8 {[%emt 0:03:43]} 43. Be4+ {[%emt 0:01:48]} Kg7 {[%emt 0:00:18]} 44. g4 {[%emt 0:05:41]} Ra2 {[%emt 0:00:00]} 45. Kf1 {[%emt 0:00:00]} Bd4 {[%emt 0:00:00]} 46. f3 {[%emt 0:00:00]} Ra5 {[%emt 0:00:00]} 47. Rc7 {[%emt 0:00:00]} Rxc5 {[%emt 0:00:00]} 48. Rxc5 {[%emt 0:00:00]} 1/2-1/2